Cogmind - Beta 11.1 @@@ ROGUE MODE // 2022.07.23 @ 22:03:24 Player: tkc Result: Destroyed by D-53 Grenadier with Mini Grenade Launcher Performance ------------- Evolutions (0) 0 Regions Visited (2) 400 Robots Destroyed (25) 125 Value Destroyed (371) 371 Prototype IDs (1) 20 Alien Tech Used (0) 0 Bonus (-82) -82 TOTAL SCORE: 834 Bonus ------- Friendly Fire -82 Cogmind --------- Core Integrity 0/250 Matter 196/300 Energy 123/125 System Corruption 0% Temperature Cool (0) Movement Rolling (100) Location -10/Mines Parts ------- > --- POWER (1) -------- Light Ion Engine > --- PROPULSION (2) --- Compact Wheel Compact Wheel > --- UTILITY (2) ------ Large Storage Unit Weapon Shielding > --- WEAPON (2) ------- Autogun Autogun > --- INVENTORY (15) --- Light Ion Engine Wheel Seismic Detector Hacking Suite Hacking Suite EM Shotgun Autogun Grenade Launcher Peak State ------------ > --- POWER ------------ Light Ion Engine > --- PROPULSION ------- Light Treads Wheel > --- UTILITY ---------- Large Storage Unit Weapon Shielding > --- WEAPON ----------- EM Shotgun Improved Medium Laser > --- INVENTORY -------- Light Ion Engine Light Ion Engine Wheel Compact Wheel Compact Wheel Seismic Detector Weapon Shielding Hacking Suite EM Shotgun Assault Rifle Assault Rifle Light Assault Rifle Grenade Launcher Grenade Launcher Grenade Launcher [Rating: 11] Favorites ----------- Power Light Ion Engine Engine Light Ion Engine Propulsion Wheel Treads Light Treads Wheel Wheel Utility Large Storage Unit Device Seismic Detector Storage Large Storage Unit Protection Weapon Shielding Weapon EM Shotgun Energy Gun EM Shotgun Ballistic Gun Assault Rifle Launcher Grenade Launcher Special Weapon Mining Laser Build | -11 -10 -10 ------- Run | Scr Mat Min Slots Evolved . | . . . Power . | . . . Propulsion . | . . . Utility . | . . . Weapon . | . . . Parts Attached 31 | 8 14 9 Power 4 | 2 1 1 Engine 4 | 2 1 1 Core . | . . . Reactor . | . . . Propulsion 7 | 2 3 2 Treads 2 | 1 1 . Leg . | . . . Wheel 5 | 1 2 2 Hover . | . . . Flight . | . . . Utility 5 | 2 2 1 Device 1 | 1 . . Storage 2 | 1 1 . Processor . | . . . Hackware . | . . . Protection 2 | . 1 1 Artifact . | . . . Weapon 15 | 2 8 5 Energy Gun 4 | . 4 . Energy Cannon . | . . . Ballistic Gun 6 | 2 2 2 Ballistic Cannon . | . . . Launcher 4 | . 1 3 Special Weapon 1 | . 1 . Impact Weapon . | . . . Slashing Weapon . | . . . Piercing Weapon . | . . . Special Melee Weapon . | . . . Unidentified Prototypes 1 | . 1 . Parts Lost 8 | . 2 6 Power 2 | . 1 1 Propulsion 1 | . . 1 Utility 1 | . . 1 Weapon 4 | . 1 3 Highest Loss Streak 6 | . 1 6 To Critical Strikes . | . . . Average Slot Usage (%) 98 | . 99 93 Engine 13 | . 14 13 Treads 9 | . 10 2 Wheel 17 | . 17 21 Storage 14 | . 14 14 Protection 13 | . 13 13 Energy Gun 12 | . 13 6 Ballistic Gun 13 | . 12 19 Naked Turns . | . . . Heaviest Build 30 | 14 30 30 Greatest Support 32 | 20 20 32 Greatest Overweight (x) 2 | 1 2 2 Average Overweight (x) 1 | . 1 . Largest Inventory Capacity 15 | 8 15 15 Average Capacity 14 | 7 14 15 Most Carried 15 | 8 15 15 Average Carried 12 | 4 12 10 Final Capacity 15 | 8 15 15 Final Carried 15 | 8 15 8 Class Distribution -------------------- 100% | Mutant Dominant Class ---------------- Mutant | -10/Materials Mutant | -10/Mines Resources | -11 -10 -10 ----------- Run | Scr Mat Min Matter Collected 628 | 322 256 50 Remotely . | . . . Salvage Created 706 | 166 482 58 Parts 49 | 9 40 . Haulers Intercepted . | . . . Recyclers Shooed . | . . . Parts Field Recycled . | . . . Retrieved Matter . | . . . Parts Self-Destructed . | . . . Prevented . | . . . Kills | -11 -10 -10 ------- Run | Scr Mat Min Combat Hostiles Destroyed 30 | . 11 19 Guns 8 | . 7 1 AOE 22 | . 4 18 Classes Destroyed 8 | 2 5 1 Builder 4 | . 4 . Tunneler 4 | 3 1 . Recycler 2 | 1 1 . Operator 3 | . 3 . Watcher 1 | . 1 . Swarmer 6 | . 6 . Grunt 5 | . 5 . Assembled 19 | . . 19 Best Kill Streak 18 | 2 4 18 Combat Bots Only 18 | . 3 18 Max Kills in Single Turn 4 | 1 2 4 Gunslinging . | . . . Exploded 4 | . 1 4 Melee . | . . . Uniques/NPCs Destroyed . | . . . Combat | -11 -10 -10 -------- Run | Scr Mat Min Damage Taken 972 | . 386 586 Core 287 | . 72 215 Absorbed by Shields . | . . . Redirected to Shielding 68 | . 34 34 Core Remaining (%) 100 | 100 . . Volleys Fired 63 | 7 46 10 Largest 2 | 2 2 2 Hottest 120 | 40 120 46 Shots Fired 105 | 14 78 13 Gun 87 | 14 67 6 Cannon . | . . . Launcher 10 | . 3 7 Special 8 | . 8 . Kinetic 60 | 14 40 6 Thermal 8 | . 8 . Explosive 10 | . 3 7 Electromagnetic 27 | . 27 . Robot Hit Streak 13 | 5 9 13 Robot Miss Streak 5 | 2 5 1 Penetration Max . | . . . Secondary Targets . | . . . Shots Hit Robots 59 | 8 41 10 Core Hits 76 | 5 31 40 Critical Kills . | . . . Critical Parts Destroyed . | . . . Critical Strikes . | . . . Melee Attacks . | . . . Impact . | . . . Slashing . | . . . Piercing . | . . . Sneak Attacks . | . . . Combat Hostiles . | . . . Follow-up Attacks . | . . . Damage Inflicted 2263 | 89 1012 1162 Guns 725 | 89 590 46 Cannons . | . . . Explosions 1538 | . 422 1116 Melee . | . . . Ramming . | . . . Kinetic 335 | 89 200 46 Thermal 230 | . 230 . Explosive 1308 | . 192 1116 Electromagnetic 390 | . 390 . Impact . | . . . Slashing . | . . . Piercing . | . . . Highest Corruption . | . . . Average Corruption . | . . . Corruption Purged . | . . . Corruption Blocked . | . . . Overload Shots . | . . . Overflow Damage 9 | . 6 3 Projectiles . | . . . Explosions 9 | . 6 3 Melee . | . . . Knockbacks . | . . . Impact . | . . . Kinetic . | . . . Secondary . | . . . Self-Inflicted Damage 161 | . 127 34 Shots 6 | . 4 2 Rammed . | . . . Targets Rammed . | . . . Kicked . | . . . Crushed . | . . . Highest Temperature 195 | 6 195 15 Average Temperature 43 | 6 46 7 Received Heat Transfer 110 | . 90 20 Siege Activations . | . . . Robots Corrupted 1 | . 1 . Combat Hostiles . | . . . Parts Fried 5 | . 5 . Impact Corruptions . | . . . Robots Melted . | . . . Combat Hostiles . | . . . Parts Melted . | . . . Heat Transferred 150 | . 150 . Parts Sabotaged . | . . . Parts Stolen . | . . . Parts Stripped . | . . . Power Chain Reactions 3 | . 3 . Missiles Intercepted . | . . . Alert | -11 -10 -10 ------- Run | Scr Mat Min Peak Influence 314 | 20 314 86 Initial 38 | . 13 38 Average 125 | 8 139 76 Maximum Alert Level 1 | . 1 . Low Security (%) 91 | 100 89 100 Level 1 8 | . 10 . Level 2 . | . . . Level 3 . | . . . Level 4 . | . . . Level 5 . | . . . High Security . | . . . Max Security . | . . . Squads Dispatched 2 | . 2 . Investigation . | . . . Extermination . | . . . Reinforcement 2 | . 2 . Assault . | . . . Garrison . | . . . Intercept . | . . . Searches Triggered . | . . . Construction Impeded . | . . . Haulers Reinforced . | . . . Active Scanning Responses . | . . . Cargo Convoy Interrupts . | . . . Stealth | -11 -10 -10 --------- Run | Scr Mat Min Distress Signals 4 | . 4 . Communications Jammed . | . . . Distress Signals . | . . . Times Spotted 41 | . 19 22 Peak Tracking Total 19 | . 4 19 Tactical Retreats . | . . . Traps | -11 -10 -10 ------- Run | Scr Mat Min Traps Triggered 1 | . 1 . Indirectly . | . . . Trap Hack Attempts . | . . . Triggered . | . . . Disarmed . | . . . Reprogrammed . | . . . Reused . | . . . Traps Extracted . | . . . Installed . | . . . Triggered . | . . . Machines | -11 -10 -10 ---------- Run | Scr Mat Min Machines Disabled 2 | . 2 . Max in Single Turn 1 | . 1 . Machines Sabotaged . | . . . Garrisons Compromised . | . . . Overloaded Fab Kills . | . . . Hacking | -11 -10 -10 --------- Run | Scr Mat Min Machines Accessed 8 | . 7 1 Terminals 6 | . 5 1 Fabricators . | . . . Repair Stations . | . . . Recycling Units 2 | . 2 . Scanalyzers . | . . . Garrison Access . | . . . Total Hacks 17 | . 15 2 Successful 12 | . 11 1 Failed 5 | . 4 1 Catastrophic . | . . . Database Lockouts . | . . . Manual 13 | . 11 2 Terminals 15 | . 13 2 Fabricators . | . . . Repair Stations . | . . . Recycling Units 2 | . 2 . Scanalyzers . | . . . Garrison Access . | . . . Terminal Hacks 5 | . 4 1 Robot Analysis 1 | . . 1 Branch Access Points 1 | . 1 . Terminal Index 1 | . 1 . Alert Level 1 | . 1 . Zone Layout 1 | . 1 . Fabricator Hacks . | . . . Repair Station Hacks . | . . . Recycling Unit Hacks 2 | . 2 . Report Inventory 2 | . 2 . Scanalyzer . | . . . Garrison Access Hacks . | . . . Unauthorized Hacks 5 | . 5 . Terminals 5 | . 5 . Assimilate 2 | . 2 . Botnet 2 | . 2 . Operators 1 | . 1 . Fabricators . | . . . Repair Stations . | . . . Recycling Units . | . . . Scanalyzers . | . . . Garrison Access . | . . . Data Cores Recovered . | . . . Used . | . . . Hacking Detections 4 | . 3 1 Full Trace Events 1 | . 1 . Feedback Events . | . . . Feedback Blocked . | . . . Robot Schematics Acquired . | . . . Robots Built . | . . . Authchips . | . . . Time . | . . . Total Robot Build Rating . | . . . Part Schematics Acquired . | . . . Parts Built . | . . . Authchips . | . . . Time . | . . . Total Part Build Rating . | . . . Parts Repaired . | . . . Time . | . . . Parts Recycled . | . . . Recycled Matter . | . . . Retrieved Matter . | . . . Retrieved Components . | . . . Parts Scanalyzed . | . . . Part Schematics Acquired . | . . . Parts Damaged . | . . . Bothacking | -11 -10 -10 ------------ Run | Scr Mat Min Used RIF Installer . | . . . Robots Hacked . | . . . Non-combat . | . . . Combat . | . . . Robot Hacks Applied . | . . . Relay Couplers Released . | . . . Fabnet Peak Effective % . | . . . Robots Rewired . | . . . Allies Hacked . | . . . Hacks Repelled . | . . . Allies | -11 -10 -10 -------- Run | Scr Mat Min Total Allies 1 | . 1 . Largest Group 1 | . 1 . Highest-Rated Group 10 | . 10 . Highest-Rated Ally 10 | . 10 . Total Orders 1 | . 1 . STAY 1 | . 1 . Ally Attacks . | . . . Total Damage . | . . . Kills . | . . . Allies Corrupted . | . . . Allies Melted . | . . . Intel | -11 -10 -10 ------- Run | Scr Mat Min Robot Analysis Total 1 | . . 1 Derelict Logs Recovered . | . . . Drone Launches . | . . . Drone Recoveries . | . . . Exploration | -11 -10 -10 ------------- Run | Scr Mat Min Turns Passed 1809 | 115 1541 153 Spaces Moved 685 | 77 489 119 Core 3 | 3 . . Treads 215 | 1 214 . Legs . | . . . Wheels 467 | 73 275 119 Hover . | . . . Flight . | . . . Fastest Speed 50 | 50 95 100 Average Speed 143 | 92 161 102 Slowest Speed 240 | 160 240 110 Overloaded Moves . | . . . Propulsion Burnouts . | . . . Robots Hopped . | . . . Cave-ins Triggered . | . . . Exploration Rate (%) 31 | 5 70 20 Regions Visited 2 Branch Regions 1 Pre-discovered Areas . | . . . Known Exits Taken 1 | . 1 . Unknown Exits Taken 1 | 1 . . Scrap Searched . | . . . Spaces Dug 5 | . 5 . Terrain Destroyed 99 | . 44 55 Melee . | . . . Projectile 5 | . 5 . AOE 94 | . 39 55 Terrain Rammed . | . . . Walls Destroyed . | . . . Machines Disabled . | . . . Actions | -11 -10 -10 --------- Run | Scr Mat Min Total 1395 | 103 1153 139 Wait 580 | . 580 . Move 683 | 76 488 119 Hop . | . . . Pick Up 26 | 10 16 . Fast Attach 9 | 7 2 . Attach 13 | . 5 8 Detach 2 | . 1 1 Swap 9 | 1 7 1 Drop 10 | 2 8 . Fire 63 | 7 46 10 Melee . | . . . Ram . | . . . Kick . | . . . Crush . | . . . Escape Stasis . | . . . Rewire . | . . . Trap . | . . . Miscellaneous . | . . . Route ------- -11/Scrapyard -10/Materials (discovered 4 exits: [*Mat x2] / *Min x2) -10/Mines History --------- Turn | Location | Event 8 | -11/Scrapyard | Discovered new exit (range 15) 116 | -11/Scrapyard | Entered Materials 217 | -10/Materials | Discovered new exit (range 10) 314 | -10/Materials | Build established: Mutant 411 | -10/Materials | Discovered new exit (range 9) 1069 | -10/Materials | Discovered new exit (range 10) 1542 | -10/Materials | Identified exit to Mines 1657 | -10/Materials | Entered Mines 1674 | -10/Mines | Assembled infested the area 1695 | -10/Mines | Core integrity fell below 50% 1723 | -10/Mines | Destroyed 18 combat bots 1727 | -10/Mines | Lost 6 parts (1p1n1u3w) 1732 | -10/Mines | Core integrity fell below 20% 1810 | -10/Mines | Destroyed by D-53 Grenadier with Mini Grenade Launcher Last Messages --------------- 01725_ K-01 Serf collects debris. 01730_ The unstable cave ceiling collapses. 01732_ as-14253 destroyed. 01733_ K-01 Serf collects debris. 01735_ Acquired 11 matter. 01737_ Acquired 18 matter. 01752_ U-05 Engineer lays Concrete. 01753_ K-01 Serf collects debris. 01754_ U-05 Engineer lays Concrete. 01756_ U-05 Engineer builds a Wall. 01757_ K-01 Serf collects debris. 01761_ U-05 Engineer lays Concrete. 01763_ U-05 Engineer builds a Wall. 01766_ Acquired 2 matter. 01767_ The unstable cave ceiling collapses. 01767_ K-01 Serf collects debris. 01768_ U-05 Engineer lays Concrete. 01807_ C-30 ARC bursts open, deploying its payload. 01807_ D-53 Grenadier unfolds itself. 01808_ U-05 Engineer lays Concrete. Map ----- +----------------------------------------------------+ | ?????????????????????????????????????????????????? | | ?????????????????????????????????????????????????? | | ?????????????????????????????????????????????????? | | ?????????????????????????????????????????????????? | | ?????????????????????????????????????????????????? | | ?????????????????????????????????????????????????? | | ?????????????????????????????????????????????????? | | ?????????????????????????????????????????????????? | | ?????????????????????????????????????????????????? | | ?????????????????????????????????????????????????? | | ?????????????????????????????????????????????????? | | ?????????????????????????????????????????????????? | | ?????????????????????????????????????????????????? | | ??????????????????????????##?????????????????????? | | ?????????????????????????? ##????????????????????? | | ??????????????#??????????? ##???????????????????? | | ??????????????# ??####???? #???????????????????? | | ?????????????## ## #?##t ???????????????????? | | ???????????? ## ????????????????????? | | ?########??? ????????????????????? | | ?# #???? ?????????????????????? | | ?# #?????? ?????????????????????? | | ?# ######??? ###???????????????????? | | ?# #?????# #???????????????????? | | ?# #### ###?????# ###?????????????????? | | ?# #??# #??????# @ ####??????????????? | | ?#T########### #??????# ### #?????????? | | ?#### ####### ####### #????????? | | ???## u ????????? | | ??## ############# ????????? | | ??# # #?????????# d ????????? | | ?### # #?????????## d % ?????????? | | ?# #??????????### ### ##?????????? | | ?# ##???????????## #???##??????????? | | ?# #????????????#### #???????????????? | | ?# # #????????????????# ##???????????????? | | ?## ##?????????????????####????????????????? | | ??# # ##??????????????????????????????????????? | | ??# # ##??????????????????????????????????????? | | ??# ######?????????????????????????????????? | | ??# ## ##????????????????????????????????? | | ??### ### #????????????????????????????????? | | ????# #?# #????????????????????????????????? | | ????#= #?## ##???????????????????????????????? | | ????# #### ##??????????????????????????????? | | ????# " #??????????????????????????????? | | ????# #??????????????????????????????? | | ????######## ##??????????????????????????????? | | ???????????# ##???????????????????????????????? | | ???????????# ##????????????????????????????????? | +----------------------------------------------------+ Best States ------------- Heat Dissipation 25 Energy Generation 10 Energy Capacity 250 Matter Stores 300 Matter Capacity 300 Sight Range 16 Terrain Scan Density 10 Weapon Shielding 33 Evasion (%) 44 Recoil Reduction 1 Item Schematics ----------------- None Robot Schematics ------------------ None Fabricated ------------ Nothing Alien Tech Used ----------------- None Achievements -------------- None Challenges ------------ None Game ------ Seed MicrowarpSpreadMicrothruster Manual? 0 Play Time 00:21:25 Cumulative 91.3 hours Start 2022.07.23 @ 21:44:38 End 2022.07.23 @ 22:03:24 Sessions 1 Manual Loads 0 Difficulty Rogue Special Mode None Game No. 61 Rogue 60 Adventurer 0 Explorer 1 Win Type - Total 0 Types 0/0/0/0/0/0/0/0/0 Lore% 22 Gallery% 36 Achievement% 26 Wizard Run 0 Options --------- ASCII 0 Keyboard 0 Movement Mouse Keybinds 0 Fullscreen 1 Font 36/TerminusBold Map View 76x50 Tactical HUD 1 Map Filters NONE Filters NONE Steam 1 RUN: 95deb03a-38eb-4e23-8f05-884fdac49c46